bitfinex/quotes_BTCUSD_20250526
["timestamp","ask_amount","ask_price","bid_price","bid_amount"]
[1748253855274,0.61872579,109650.0,109640.0,2.49395003]
[1748253856148,0.71642579,109650.0,109640.0,2.49395003]
[1748253856782,0.71642579,109650.0,109640.0,2.83395003]
[1748253858262,0.8287473,109650.0,109640.0,2.83395003]
[1748253858440,0.8529473,109650.0,109640.0,1.30889902]
[1748253858882,0.8059473,109650.0,109640.0,1.30889902]
[1748253859502,0.57062579,109650.0,109640.0,1.30889902]
[1748253859702,0.57062579,109650.0,109640.0,1.33269902]
[1748253859826,0.71642579,109650.0,109640.0,1.33269902]
[1748253861712,0.71642579,109650.0,109640.0,1.30889902]
[1748253861918,0.74082579,109650.0,109640.0,1.30889902]
[1748253862142,0.76332579,109650.0,109640.0,1.30889902]
[1748253862557,0.8528473,109650.0,109640.0,1.30889902]
[1748253864149,0.76332579,109650.0,109640.0,1.30889902]
[1748253871977,0.76332579,109650.0,109640.0,0.002]
[1748253872218,0.76332579,109650.0,109640.0,0.70747701]
[1748253872421,0.78036334,109650.0,109640.0,0.70747701]
[1748253872702,0.78888208,109650.0,109640.0,0.70747701]
[1748253872905,0.89933615,109650.0,109640.0,0.70747701]
[1748253873301,0.88229863,109650.0,109640.0,0.70747701]
[1748253873933,0.88233863,109650.0,109640.0,0.342]
[1748253874339,0.88233863,109650.0,109640.0,0.34]
[1748253874574,0.88333863,109650.0,109640.0,0.34]
[1748253874782,0.90036625,109650.0,109640.0,0.34]
[1748253875075,0.9632689,109650.0,109640.0,0.34]
[1748253875431,0.9632689,109650.0,109640.0,0.70547701]
[1748253875708,0.94624128,109650.0,109640.0,0.70547701]
[1748253876456,0.94624128,109650.0,109640.0,0.70525095]
[1748253880859,0.94624128,109650.0,109640.0,0.33977394]
[1748253880998,0.94624128,109650.0,109640.0,0.70525095]
[1748253881776,0.94624128,109650.0,109640.0,0.33977394]
[1748253881966,0.94624128,109650.0,109640.0,0.70525095]
[1748253891134,0.5006744,109630.0,109620.0,0.36747701]
[1748253891352,0.98138147,109630.0,109620.0,0.94835201]
[1748253891555,0.98138147,109630.0,109620.0,1.65382902]
[1748253892327,0.98138147,109630.0,109620.0,1.65582902]
[1748253892936,0.89185996,109630.0,109620.0,1.65582902]
[1748253893457,0.89185996,109630.0,109620.0,1.62598702]
[1748253893822,0.89185996,109630.0,109620.0,1.17689702]
[1748253894026,0.89185996,109630.0,109620.0,1.17889702]
[1748253895523,0.93905996,109630.0,109620.0,1.17889702]
[1748253895723,1.02858147,109630.0,109620.0,1.17889702]
[1748253895934,1.00358147,109630.0,109620.0,1.17689702]
[1748253896314,1.00358147,109630.0,109620.0,1.17789702]
[1748253896752,1.00358147,109630.0,109620.0,1.17589702]
[1748253896906,0.98138147,109630.0,109620.0,1.17589702]
[1748253897112,0.98138147,109630.0,109620.0,1.17689702]
[1748253900486,0.83554147,109630.0,109620.0,1.17689702]
[1748253900699,0.98138147,109630.0,109620.0,1.17689702]
[1748253901317,0.98138147,109630.0,109620.0,1.1768208]
[1748253903860,0.83554147,109630.0,109620.0,1.1768208]
[1748253904062,0.98138147,109630.0,109620.0,1.1768208]
[1748253908124,0.83554147,109630.0,109620.0,1.1768208]
[1748253908337,0.59021996,109630.0,109620.0,1.58879781]
[1748253908550,0.73605996,109630.0,109620.0,1.22339702]
[1748253910350,0.73605996,109630.0,109620.0,1.19959702]
[1748253910777,0.73605996,109630.0,109620.0,1.22379702]
[1748253917790,0.59021996,109630.0,109620.0,1.22379702]
[1748253917977,0.73605996,109630.0,109620.0,1.22379702]
[1748253922062,0.89165996,109630.0,109620.0,1.22379702]
[1748253922258,0.89165996,109630.0,109620.0,1.19959702]
[1748253922767,1.28118147,109630.0,109620.0,1.17689702]
[1748253923012,1.19165996,109630.0,109620.0,1.17689702]
[1748253924123,1.19165996,109630.0,109620.0,1.20059702]
[1748253925374,1.19165996,109630.0,109620.0,1.22359702]
[1748253926441,1.19165996,109630.0,109620.0,0.492643]
[1748253926679,1.19165996,109630.0,109620.0,1.22359702]
[1748253927639,0.89165996,109630.0,109620.0,1.22359702]
[1748253927857,0.74581996,109630.0,109620.0,1.22359702]
[1748253928067,0.89165996,109630.0,109620.0,1.22359702]
[1748253945063,0.89165996,109630.0,109620.0,1.17689702]
[1748253950445,0.98118147,109630.0,109620.0,1.17689702]
[1748253951791,0.89165996,109630.0,109620.0,1.17689702]
[1748253955739,0.89165996,109630.0,109620.0,1.56497403]
[1748253956420,0.74581996,109630.0,109620.0,1.56497403]
[1748253956621,0.2006744,109630.0,109620.0,1.60221488]
[1748253956838,0.3465144,109630.0,109620.0,1.60221488]
[1748253957048,0.2006744,109630.0,109620.0,1.69173639]
[1748253960298,0.2006744,109630.0,109620.0,1.87418484]
[1748253960720,0.2006744,109630.0,109620.0,1.89242909]
[1748253960721,0.01824259,109630.0,109620.0,1.89242909]
[1748253960896,0.01824259,109630.0,109620.0,1.90155093]
[1748253961106,0.01824259,109630.0,109620.0,1.92891393]
[1748253961472,0.2097959,109630.0,109620.0,1.92891393]
[1748253961876,0.21891749,109630.0,109620.0,1.92891393]
[1748253962578,0.21891749,109630.0,109620.0,1.91979209]
[1748253962800,0.21891749,109630.0,109620.0,1.93803585]
[1748253963005,0.02736409,109630.0,109620.0,1.93803585]
[1748253963455,0.2097959,109630.0,109620.0,1.93803585]
[1748253963966,0.2097959,109630.0,109620.0,1.91067009]
[1748253964271,0.2097959,109630.0,109620.0,2.06563218]
[1748253964698,0.2097959,109630.0,109620.0,2.07475418]
[1748253965384,0.2097959,109630.0,109620.0,2.0838761]
[1748253965939,0.02736409,109630.0,109620.0,2.0838761]
[1748253966141,0.02736409,109630.0,109620.0,2.09299794]
[1748253966363,0.01824259,109630.0,109620.0,2.09299794]
[1748253967213,0.2097959,109630.0,109620.0,2.09299794]
[1748253968113,0.21891749,109630.0,109620.0,2.09299794]
[1748253971963,0.21891749,109630.0,109620.0,2.21779794]
[1748253972368,0.21891749,109630.0,109620.0,2.2086761]
[1748253973352,0.01824209,109630.0,109620.0,3.39465269]
[1748253973577,0.18308023,109650.0,109640.0,0.06274085]
[1748253973790,0.002,109650.0,109640.0,4.41939234]
[1748253973999,0.04321665,109670.0,109660.0,0.09009737]
[1748253974212,0.16145251,109670.0,109660.0,2.36678551]
[1748253974439,0.24381769,109670.0,109660.0,2.52858344]
[1748253974652,0.25293587,109670.0,109660.0,2.51946493]
[1748253974869,0.21171947,109670.0,109660.0,2.95440129]
[1748253975080,0.20260154,109670.0,109660.0,3.28262319]
[1748253975331,0.20360154,109670.0,109660.0,3.29174228]
[1748253976051,0.19448345,109670.0,109660.0,3.10024129]
[1748253977904,0.19448345,109670.0,109660.0,3.10020129]
[1748253978052,0.19448345,109670.0,109660.0,2.36908906]
[1748253979612,0.19448345,109670.0,109660.0,2.73440786]
[1748253987645,0.18236377,109680.0,109670.0,0.34911826]
[1748253987865,0.01111593,109690.0,109680.0,0.57902394]
[1748253988082,0.03846514,109690.0,109680.0,3.24079967]
[1748253988408,0.22079716,109690.0,109680.0,2.70224645]
[1748253988711,0.03846505,109690.0,109680.0,2.91194639]
[1748253989469,0.03846505,109690.0,109680.0,2.91294639]
[1748253989700,0.03846505,109690.0,109680.0,2.97420003]
[1748253989874,0.02023211,109690.0,109680.0,2.97420003]
[1748253990059,0.02934837,109690.0,109680.0,2.97420003]
[1748253990880,0.02023211,109690.0,109680.0,2.97420003]
[1748253991101,0.02934846,109690.0,109680.0,2.97420003]
[1748253991303,0.2207969,109690.0,109680.0,2.97420003]
[1748253992527,0.0384648,109690.0,109680.0,2.97407193]
[1748253993057,0.04758131,109690.0,109680.0,2.97407201]
[1748253993459,0.22991333,109690.0,109680.0,2.97376816]
[1748253993963,0.22991333,109690.0,109680.0,2.98288501]
[1748253994418,0.04758131,109690.0,109680.0,2.98288501]
[1748253994743,0.0384648,109690.0,109680.0,2.98288501]
[1748253995479,0.02023211,109690.0,109680.0,2.98288501]
[1748253995699,0.02934854,109690.0,109680.0,2.98288501]
[1748253996107,0.02023211,109690.0,109680.0,2.98288501]
[1748253996804,0.02023203,109690.0,109680.0,2.98288501]
[1748253997388,0.02934821,109690.0,109680.0,2.98288501]
[1748253997691,0.02934821,109690.0,109680.0,2.60487611]
[1748253999713,0.02934821,109690.0,109680.0,2.95941696]
[1748254000608,0.04758099,109690.0,109680.0,2.95941696]
[1748254001087,0.02934821,109690.0,109680.0,2.98301696]
[1748254002740,0.02023203,109690.0,109680.0,2.98301696]
[1748254002941,0.02023203,109690.0,109680.0,3.34833576]
[1748254002942,0.002,109690.0,109680.0,3.34833576]
[1748254003141,0.01911518,109700.0,109690.0,0.5956808]
[1748254003343,0.02823037,109700.0,109690.0,2.87884633]
[1748254003549,0.0191151,109700.0,109690.0,2.87884633]
[1748254004097,0.02823053,109700.0,109690.0,2.87884633]
[1748254004303,0.02823053,109700.0,109690.0,2.90619133]
[1748254004539,0.0373458,109700.0,109690.0,2.90619133]
[1748254004751,0.2287768,109700.0,109690.0,2.88299133]
[1748254004915,0.0464614,109700.0,109690.0,2.88299133]
[1748254005116,0.0464614,109700.0,109690.0,2.88399133]
[1748254005354,0.07877708,109700.0,109690.0,2.64163262]
[1748254005575,0.05557708,109700.0,109690.0,2.65074863]
[1748254005754,0.23789248,109700.0,109690.0,2.65174863]
[1748254006202,0.0373463,109700.0,109690.0,3.03936743]
[1748254006406,0.04646198,109700.0,109690.0,3.06396743]
[1748254006618,0.22877738,109700.0,109690.0,3.06396743]
[1748254007650,0.04646198,109700.0,109690.0,3.06396743]
[1748254009944,0.22877738,109700.0,109690.0,3.06396743]
[1748254010281,0.22877788,109700.0,109690.0,3.04573532]
[1748254010640,0.22877788,109700.0,109690.0,3.0548515]
[1748254013294,0.21966245,109700.0,109690.0,3.04573532]
[1748254018693,0.0191156,109700.0,109690.0,3.14439698]
[1748254018901,0.04646131,109700.0,109690.0,3.15351299]
[1748254019303,0.03734571,109700.0,109690.0,3.15351299]
[1748254019527,0.04646106,109700.0,109690.0,3.15351299]
[1748254020235,0.0191151,109700.0,109690.0,3.15351299]
[1748254020670,0.03734571,109700.0,109690.0,3.15351299]
[1748254021098,0.02823028,109700.0,109690.0,3.15351299]
[1748254021318,0.04646107,109700.0,109690.0,3.15351299]
[1748254021493,0.03734555,109700.0,109690.0,3.15351299]
[1748254021698,0.02823028,109700.0,109690.0,3.15351299]
[1748254022329,0.0191151,109700.0,109690.0,3.15351299]
[1748254022921,0.01,109700.0,109690.0,3.16805384]
[1748254023320,0.02823037,109700.0,109690.0,3.16805384]
[1748254023717,0.02111419,109710.0,109700.0,0.59516169]
[1748254023946,0.02111419,109710.0,109700.0,2.91492621]
[1748254024352,0.03022863,109710.0,109700.0,2.91492621]
[1748254024506,0.02111419,109710.0,109700.0,2.91492621]
[1748254024703,0.03934315,109710.0,109700.0,2.91492621]
[1748254024945,0.04845792,109710.0,109700.0,2.91492621]
[1748254025144,0.03934315,109710.0,109700.0,2.91492621]
[1748254025347,0.04845784,109710.0,109700.0,2.91492621]
[1748254025556,0.04845775,109710.0,109700.0,2.91492621]
[1748254025798,0.04945775,109710.0,109700.0,2.91492621]
[1748254026000,0.03934315,109710.0,109700.0,2.91492621]
[1748254028102,0.03934315,109710.0,109700.0,3.03972621]
[1748254028724,0.02111419,109710.0,109700.0,3.03972621]
[1748254028914,0.03934298,109710.0,109700.0,3.03972621]
[1748254029126,0.0393429,109710.0,109700.0,3.03972621]
[1748254029334,0.20139659,109720.0,109710.0,0.53141355]
[1748254029557,0.20139659,109720.0,109710.0,2.87365848]
[1748254029767,0.22309659,109720.0,109710.0,2.87365848]
[1748254029951,0.22309659,109720.0,109710.0,2.86454379]
[1748254030518,0.22409659,109720.0,109710.0,2.86454379]
[1748254031260,0.22409659,109720.0,109710.0,2.87365839]
[1748254031431,0.20239659,109720.0,109710.0,2.90099839]
[1748254032114,0.02922763,109720.0,109710.0,2.93371274]
[1748254032294,0.03834165,109720.0,109710.0,2.93371274]
[1748254032447,0.03934165,109720.0,109710.0,2.93371274]
[1748254032672,0.23073792,109720.0,109710.0,3.29903154]
[1748254032886,0.04845575,109720.0,109710.0,3.29903154]
[1748254033195,0.15112413,109740.0,109730.0,0.55503254]
[1748254033400,0.05162212,109740.0,109730.0,2.85623084]
[1748254033602,0.06073399,109740.0,109730.0,2.86534353]
[1748254033786,0.05162196,109740.0,109730.0,2.86534353]
[1748254033987,0.06073382,109740.0,109730.0,2.86534353]
[1748254034186,0.02872196,109740.0,109730.0,2.86534353]
[1748254034413,0.03783399,109740.0,109730.0,2.86534353]
[1748254034620,0.0378339,109740.0,109730.0,2.86534353]
[1748254035047,0.03783382,109740.0,109730.0,2.86534353]
[1748254035248,0.02872196,109740.0,109730.0,2.86534353]
[1748254035969,0.01149848,109740.0,109730.0,2.88914353]
[1748254036165,0.02161018,109740.0,109730.0,2.88914353]
[1748254036399,0.01961018,109740.0,109730.0,2.88914353]
[1748254036569,0.01049848,109740.0,109730.0,2.97968909]
[1748254036786,0.01049848,109740.0,109730.0,2.98068909]
[1748254036993,0.01961018,109740.0,109730.0,2.98068909]
[1748254037196,0.01049848,109740.0,109730.0,2.98068909]
[1748254037407,0.03398454,109750.0,109740.0,0.57323823]
[1748254037618,0.53553133,109770.0,109760.0,0.53132636]
[1748254037836,0.64479049,109770.0,109760.0,2.65748312]
[1748254038049,0.64479049,109770.0,109760.0,2.66659382]
[1748254038050,0.54479049,109770.0,109760.0,2.66659382]
[1748254038257,0.54479049,109770.0,109760.0,2.72784746]
[1748254038504,0.20358207,109770.0,109760.0,2.72784746]
[1748254038947,0.02325916,109770.0,109760.0,2.74238831]
[1748254039188,0.19230565,109780.0,109770.0,0.52219914]
[1748254039402,0.19230565,109780.0,109770.0,2.9018169]
[1748254039830,0.19230565,109780.0,109770.0,2.8927072]
[1748254040042,0.19230565,109780.0,109770.0,2.90181699]
[1748254040270,0.21040054,109780.0,109770.0,2.93457699]
[1748254040481,0.22050925,109780.0,109770.0,2.91635784]
[1748254040686,0.22050925,109780.0,109770.0,2.93457716]
[1748254041126,0.22050925,109780.0,109770.0,2.92546754]
[1748254041331,0.22050925,109780.0,109770.0,2.91635784]
[1748254041535,0.21140054,109780.0,109770.0,2.91635784]
[1748254042194,0.21140054,109780.0,109770.0,2.91635792]
[1748254042590,0.21140054,109780.0,109770.0,2.92546771]
[1748254042812,0.23460054,109780.0,109770.0,2.90724805]
[1748254043760,0.21140054,109780.0,109770.0,2.90724805]
[1748254043972,0.23380054,109780.0,109770.0,2.90724805]
[1748254044593,0.21558254,109780.0,109770.0,2.71593896]
[1748254045025,0.21558254,109780.0,109770.0,2.74326596]
[1748254045244,0.23908254,109780.0,109770.0,2.74326596]
[1748254045491,0.21558254,109780.0,109770.0,2.9254651]
[1748254045928,0.21558254,109780.0,109770.0,2.74326596]
[1748254046152,0.23738254,109780.0,109770.0,2.21567811]
[1748254046368,0.3269281,109780.0,109770.0,0.68651131]
[1748254046594,0.3269281,109780.0,109770.0,1.05183011]
[1748254046595,0.3319281,109780.0,109770.0,1.05183011]
[1748254046829,0.24238254,109780.0,109770.0,1.39183011]
[1748254048595,0.3319281,109780.0,109770.0,1.39183011]
[1748254048796,0.3319281,109780.0,109770.0,0.9369898]
[1748254048797,0.4775681,109780.0,109770.0,0.9369898]
[1748254049003,0.4775681,109780.0,109770.0,0.8475138]
[1748254049004,0.7775681,109780.0,109770.0,0.8475138]
[1748254049410,0.7775681,109780.0,109770.0,0.7053188]
[1748254049611,0.7775681,109780.0,109770.0,0.8565348]
[1748254049812,0.7775681,109780.0,109770.0,0.8392348]
[1748254050193,1.0725681,109780.0,109770.0,0.34]
[1748254050362,1.0725681,109780.0,109770.0,0.7053188]
[1748254050770,1.0725681,109780.0,109770.0,0.8097628]
[1748254051011,1.0725681,109780.0,109770.0,0.8160628]
[1748254051391,0.49630893,109770.0,109760.0,0.3653188]
[1748254051652,0.93245449,109770.0,109760.0,0.4780498]
[1748254052032,0.93245449,109770.0,109760.0,0.8180498]
[1748254052583,0.94091926,109770.0,109760.0,0.8180498]
[1748254053881,0.94091926,109770.0,109760.0,0.8190498]
[1748254055273,0.93245449,109770.0,109760.0,0.8190498]
[1748254057393,0.93245449,109770.0,109760.0,0.79771002]
[1748254057589,0.93245449,109770.0,109760.0,0.9586618]
[1748254057707,1.07813449,109770.0,109760.0,1.04818331]
[1748254058715,1.08661362,109770.0,109760.0,1.04818331]
[1748254060008,1.24093362,109770.0,109760.0,1.04818331]
[1748254060240,1.38661362,109770.0,109760.0,1.04818331]
[1748254060472,1.38661362,109770.0,109760.0,0.9586618]
[1748254060750,1.38661362,109770.0,109760.0,0.9576618]
[1748254061453,1.38761362,109770.0,109760.0,0.9576618]
[1748254061657,1.54229362,109770.0,109760.0,0.9576618]
[1748254062502,1.39661362,109770.0,109760.0,0.9576618]
[1748254062706,1.54229362,109770.0,109760.0,0.9576618]
[1748254062916,1.54229362,109770.0,109760.0,1.04718331]
[1748254063880,1.54229362,109770.0,109760.0,0.9576618]
[1748254064500,1.24193362,109770.0,109760.0,0.9576618]
[1748254064637,1.54229362,109770.0,109760.0,0.9576618]
[1748254065832,1.24229362,109770.0,109760.0,0.9576618]
[1748254066049,0.94229362,109770.0,109760.0,0.9576618]
[1748254066249,0.91849362,109770.0,109760.0,0.9576618]
[1748254066494,1.21849362,109770.0,109760.0,0.9576618]
[1748254068266,1.07281362,109770.0,109760.0,0.9576618]
[1748254068473,1.21849362,109770.0,109760.0,0.9576618]
[1748254068929,1.21849362,109770.0,109760.0,0.6176618]
[1748254072971,1.21849362,109770.0,109760.0,0.9576618]
[1748254075072,1.19069362,109770.0,109760.0,0.9576618]
[1748254077615,1.04501362,109770.0,109760.0,1.04718331]
[1748254077820,1.19069362,109770.0,109760.0,1.04718331]
[1748254078007,1.19069362,109770.0,109760.0,0.9576618]
[1748254078635,1.21399362,109770.0,109760.0,0.9576618]
[1748254080546,1.19057362,109770.0,109760.0,0.9804618]
[1748254081173,1.19057362,109770.0,109760.0,0.9576618]
[1748254081775,0.59033362,109770.0,109760.0,0.9576618]
[1748254081997,1.19057362,109770.0,109760.0,1.43650211]
[1748254082200,0.89057362,109770.0,109760.0,1.46070211]
[1748254083236,0.89057362,109770.0,109760.0,1.43650211]
[1748254083450,0.89057362,109770.0,109760.0,1.07118331]
[1748254084474,0.89057362,109770.0,109760.0,1.04718331]
[1748254084666,0.91347362,109770.0,109760.0,0.9576618]
[1748254088376,0.89057362,109770.0,109760.0,0.9576618]
[1748254089798,0.89057362,109770.0,109760.0,0.592343]
[1748254090030,0.89057362,109770.0,109760.0,0.9576618]
[1748254090242,0.89057362,109770.0,109760.0,1.04718331]
[1748254093539,0.89057362,109770.0,109760.0,1.06938331]
[1748254094491,0.89057362,109770.0,109760.0,1.09158331]
[1748254094697,0.89057362,109770.0,109760.0,1.45690211]
[1748254095909,0.59033362,109770.0,109760.0,1.45690211]
[1748254096111,0.89057362,109770.0,109760.0,1.45690211]
[1748254099166,0.74489362,109770.0,109760.0,1.45690211]
[1748254099366,0.89057362,109770.0,109760.0,1.45690211]
[1748254099982,0.59033362,109770.0,109760.0,1.45690211]
[1748254100183,0.89057362,109770.0,109760.0,1.45690211]
[1748254104249,0.59033362,109770.0,109760.0,1.45690211]
[1748254104453,0.89057362,109770.0,109760.0,1.45690211]
[1748254106464,0.88209449,109770.0,109760.0,1.43470211]
[1748254106795,0.88209449,109770.0,109760.0,0.9576618]
[1748254106971,0.90479449,109770.0,109760.0,0.9576618]
[1748254108470,0.91331282,109770.0,109760.0,0.9576618]
[1748254110467,0.91331282,109770.0,109740.0,0.86575826]
[1748254110468,0.20045499,109750.0,109740.0,0.15084946]
[1748254110666,0.43568055,109750.0,109740.0,2.10696706]
[1748254110888,0.75848055,109750.0,109740.0,2.19648857]
[1748254111103,0.73568055,109750.0,109740.0,2.53648857]
[1748254111265,0.73568055,109750.0,109740.0,2.19648857]
[1748254111461,0.75848055,109750.0,109740.0,2.19648857]
[1748254111694,0.75848055,109750.0,109740.0,2.53648857]
[1748254111901,0.75848055,109750.0,109740.0,1.80785097]
[1748254112250,0.75848055,109750.0,109740.0,2.03651557]
[1748254112629,0.75848055,109750.0,109740.0,2.03851557]
[1748254113410,1.08158055,109750.0,109740.0,1.22537626]
[1748254113625,1.08158055,109750.0,109740.0,0.65192126]
[1748254113822,1.09008925,109750.0,109740.0,0.99192126]
[1748254114442,1.09008925,109750.0,109740.0,0.91455326]
[1748254114643,1.08158055,109750.0,109740.0,0.85363026]
[1748254114849,0.87110206,109750.0,109740.0,0.71146826]
[1748254115085,0.87110206,109750.0,109740.0,0.34614946]
[1748254115293,0.87110206,109750.0,109740.0,0.71146826]
[1748254116294,0.87110206,109750.0,109740.0,0.70946826]
[1748254116485,0.87959671,109750.0,109740.0,0.70746826]
[1748254116733,0.87959671,109750.0,109740.0,0.70846826]
[1748254117657,0.87110206,109750.0,109740.0,0.70846826]
[1748254118427,0.78158055,109750.0,109740.0,0.70846826]
[1748254127391,0.63590055,109750.0,109740.0,0.70846826]
[1748254127585,0.78162055,109750.0,109740.0,0.70846826]
[1748254129305,0.63590055,109750.0,109740.0,0.70846826]
[1748254129486,0.78162055,109750.0,109740.0,0.70846826]
[1748254129976,0.79939525,109750.0,109740.0,0.70846826]
[1748254131310,0.78162055,109750.0,109740.0,0.70846826]
[1748254136903,0.79009931,109750.0,109740.0,0.70846826]
[1748254139930,0.79009931,109750.0,109740.0,1.07315114]
[1748254140586,0.62127931,109750.0,109740.0,1.07315114]
[1748254140796,0.89847931,109750.0,109740.0,2.42135098]
[1748254141001,1.19867931,109750.0,109740.0,2.51087249]
[1748254141441,1.19867931,109750.0,109740.0,2.14587165]
[1748254142076,0.89867931,109750.0,109740.0,2.14587165]
[1748254142279,1.19867931,109750.0,109740.0,2.14587165]
[1748254142493,0.89867931,109750.0,109740.0,2.51087249]
[1748254142711,0.59847931,109750.0,109740.0,2.42135098]
[1748254142920,0.89867931,109750.0,109740.0,2.42135098]
[1748254143126,0.89020055,109750.0,109740.0,2.42135098]
[1748254143539,0.89020055,109750.0,109740.0,2.07920152]
[1748254144053,0.89020055,109750.0,109740.0,1.71385968]
[1748254145040,0.89020055,109750.0,109740.0,1.80338119]
[1748254145464,0.89020055,109750.0,109740.0,2.14338119]
[1748254150917,0.74448055,109750.0,109740.0,2.14338119]
[1748254151128,0.59016055,109750.0,109740.0,2.14338119]
[1748254152011,0.43568055,109750.0,109740.0,2.14338119]
[1748254163961,0.43568055,109750.0,109740.0,2.14349293]
[1748254167900,0.43568055,109750.0,109740.0,1.41372051]
[1748254168110,0.43568055,109750.0,109740.0,2.14349293]
[1748254171646,0.43568055,109750.0,109740.0,2.11969293]
[1748254172496,0.59008055,109750.0,109740.0,2.11969293]
[1748254173048,0.59008055,109750.0,109740.0,2.03017142]
[1748254173371,0.59008055,109750.0,109740.0,2.00737142]
[1748254173714,1.19008055,109750.0,109740.0,1.277599]
[1748254173920,1.23638055,109750.0,109740.0,0.70588621]
[1748254174115,1.32590206,109750.0,109740.0,0.70588621]
[1748254174765,1.02590206,109750.0,109740.0,0.36588621]
[1748254174963,1.05144213,109750.0,109740.0,0.36588621]
[1748254175366,1.05144213,109750.0,109740.0,0.70588621]
[1748254175618,1.0344159,109750.0,109740.0,0.36588621]
[1748254175839,1.04079792,109750.0,109740.0,0.36588621]
[1748254177429,1.10364078,109750.0,109740.0,0.36588621]
[1748254177653,1.10364078,109750.0,109740.0,0.50859821]
[1748254177877,1.10364078,109750.0,109740.0,0.36588621]
[1748254179033,1.09725876,109750.0,109740.0,0.36588621]
[1748254183225,1.10363334,109750.0,109740.0,0.36588621]
[1748254184143,1.20363334,109750.0,109740.0,0.36588621]
[1748254185172,1.20663334,109750.0,109740.0,0.36588621]
[1748254185584,1.20663334,109750.0,109740.0,0.36488621]
[1748254187132,1.20663334,109750.0,109740.0,0.70488621]
[1748254187706,1.20663334,109750.0,109740.0,0.34]
[1748254190729,1.20663334,109750.0,109740.0,0.70488621]
[1748254191889,1.22362555,109750.0,109740.0,0.70488621]
[1748254192345,1.22362555,109750.0,109740.0,0.34]
[1748254192522,1.22362555,109750.0,109740.0,0.70488621]
[1748254193318,0.305,109740.0,109730.0,0.36488621]
[1748254193593,0.54267867,109730.0,109720.0,0.002]
[1748254193715,0.47794423,109730.0,109720.0,0.002]
[1748254193922,0.48645807,109730.0,109720.0,0.002]
[1748254194485,0.48645807,109730.0,109720.0,0.342]
[1748254194885,0.49283265,109730.0,109720.0,0.70688621]
[1748254195141,0.53308929,109730.0,109720.0,0.70788621]
[1748254195340,0.52671471,109730.0,109720.0,0.70788621]
[1748254196650,0.52671471,109730.0,109720.0,0.70688621]
[1748254197031,0.52771471,109730.0,109720.0,0.70688621]
[1748254200473,0.38199471,109730.0,109720.0,0.70688621]
[1748254200657,0.50411471,109730.0,109720.0,0.70688621]
[1748254203139,0.44115807,109730.0,109720.0,0.70688621]
[1748254203356,0.44115807,109730.0,109720.0,1.07177242]
[1748254204176,0.44115807,109730.0,109720.0,0.70688621]
[1748254204522,0.59559807,109730.0,109720.0,2.27968463]
[1748254204747,0.65344093,109730.0,109720.0,2.27968463]
[1748254204959,0.64492709,109730.0,109720.0,2.27968463]
[1748254205162,0.64476709,109730.0,109720.0,1.91479842]
[1748254205359,0.79916709,109730.0,109720.0,1.91479842]
[1748254205692,0.64492709,109730.0,109720.0,2.25833392]
[1748254205837,0.94492709,109730.0,109720.0,2.25833392]
[1748254206047,0.64492709,109730.0,109720.0,2.25833392]
[1748254206294,0.94492709,109730.0,109720.0,2.25833392]
[1748254206451,0.94492709,109730.0,109720.0,1.89344771]
[1748254206885,0.94492709,109730.0,109720.0,2.25833392]
[1748254207078,0.73632423,109730.0,109720.0,2.34785543]
[1748254207291,0.88204423,109730.0,109720.0,2.25833392]
[1748254208036,0.88204423,109730.0,109720.0,1.52865661]
[1748254209621,0.58192423,109730.0,109720.0,1.52865661]
[1748254209839,0.88200423,109730.0,109720.0,1.52865661]
[1748254209981,0.58192423,109730.0,109720.0,1.52865661]
[1748254210198,0.88200423,109730.0,109720.0,1.52865661]
[1748254211180,0.73628423,109730.0,109720.0,1.52865661]
[1748254211386,0.88200423,109730.0,109720.0,1.52865661]
[1748254213118,0.88200423,109730.0,109720.0,1.61817812]
[1748254213808,0.58192423,109730.0,109720.0,1.52865661]
[1748254214009,0.88200423,109730.0,109720.0,1.52865661]
[1748254214308,0.58192423,109730.0,109720.0,1.52865661]
[1748254214608,0.88200423,109730.0,109720.0,1.52865661]
[1748254215734,0.73628423,109730.0,109720.0,1.52865661]
[1748254215868,0.88200423,109730.0,109720.0,1.52865661]
[1748254216517,0.88200423,109730.0,109720.0,1.61817812]
[1748254220208,0.73628423,109730.0,109720.0,1.61817812]
[1748254220415,0.88200423,109730.0,109720.0,1.61817812]
[1748254222762,0.88200423,109730.0,109720.0,1.29752883]
[1748254225258,0.88200423,109730.0,109720.0,0.52819532]
[1748254225459,1.20480423,109730.0,109720.0,0.51753632]
[1748254226025,1.20480423,109730.0,109720.0,0.50052732]
[1748254226657,1.20480423,109730.0,109720.0,0.84052732]
[1748254227208,1.22790423,109730.0,109720.0,0.70498132]
[1748254227409,1.31742574,109730.0,109720.0,0.70498132]
[1748254227525,1.31742574,109730.0,109720.0,0.84300632]
[1748254228757,1.31742574,109730.0,109720.0,0.81038432]
[1748254229779,1.31742574,109730.0,109720.0,0.70498132]
[1748254230062,1.31742574,109730.0,109720.0,0.85162432]
[1748254230668,1.31742574,109730.0,109720.0,0.70498132]
[1748254231294,1.31742574,109730.0,109720.0,0.84245832]
[1748254232789,1.31742574,109730.0,109720.0,0.36498132]
[1748254232919,0.20052807,109710.0,109700.0,0.0244]
[1748254233125,0.43579363,109710.0,109700.0,2.10356132]
[1748254233928,0.43579363,109710.0,109700.0,2.10556132]
[1748254234318,0.4358842,109710.0,109700.0,2.10556132]
[1748254234720,0.4358842,109710.0,109700.0,2.10756132]
[1748254239929,0.4358842,109710.0,109700.0,2.4729425]
[1748254242956,0.5901642,109710.0,109700.0,2.4729425]
[1748254244526,0.5901642,109710.0,109700.0,2.4505425]
[1748254245868,0.5901642,109710.0,109700.0,2.4724425]
[1748254254295,0.5901642,109710.0,109700.0,2.4505425]
[1748254254781,0.5901642,109710.0,109700.0,2.1539595]
[1748254255221,0.5901642,109710.0,109700.0,2.0967245]
[1748254255412,0.5901642,109710.0,109700.0,2.0785665]
[1748254256218,0.5901642,109710.0,109700.0,2.1018665]
[1748254258661,0.5901642,109710.0,109700.0,2.1251665]
[1748254259627,0.5901642,109710.0,109700.0,1.7129415]
[1748254259783,0.67968571,109710.0,109700.0,1.6947785]
[1748254259988,0.97968571,109710.0,109700.0,1.7185785]
[1748254260186,0.8901642,109710.0,109700.0,1.7406785]
[1748254260386,0.7444442,109710.0,109700.0,1.7406785]
[1748254260619,0.8902042,109710.0,109700.0,1.7406785]
[1748254261135,0.4444442,109710.0,109700.0,2.10585975]
[1748254261329,0.5902042,109710.0,109700.0,2.10585975]
[1748254261520,0.4444442,109710.0,109700.0,2.10585975]
[1748254261721,0.20061864,109710.0,109700.0,2.10585975]
[1748254289586,0.20061864,109710.0,109700.0,1.010316]
[1748254289799,0.20061864,109710.0,109700.0,2.10585975]
[1748254292676,0.20061864,109710.0,109700.0,1.010316]
[1748254292894,0.20061864,109710.0,109700.0,2.10585975]
[1748254293210,0.20061864,109710.0,109700.0,2.19538126]
[1748254294149,0.20061864,109710.0,109700.0,1.97370136]
[1748254294352,0.20061864,109710.0,109700.0,1.85338126]
[1748254296119,0.20061864,109710.0,109700.0,2.19338126]
[1748254297036,0.20061864,109710.0,109700.0,1.09783751]